fUSD/lending_fUSD_20260613
["ID","MTS","AMOUNT","RATE_DAILY","PERIOD"]
[424975335,1781365839000,-300.0,0.00010848,2]
[424975334,1781365839000,-300.0,0.00010848,2]
[424975341,1781365839000,-165.98,0.00010914,2]
[424975348,1781365839000,-308.61,0.00011075,2]
[424975356,1781365839000,-151.0,0.00011166,2]
[424975343,1781365839000,-150.0,0.00010959,2]
[424975349,1781365839000,-1174.41260507,0.00011166,2]
[424975346,1781365839000,-3200.0,0.0001103,2]
[424975344,1781365839000,-166.66,0.00010959,2]
[424975342,1781365839000,-3092.93,0.00010939,2]
[424975350,1781365839000,-151.0,0.00011166,2]
[424975351,1781365839000,-151.0,0.00011166,2]
[424975357,1781365839000,-151.0,0.00011166,2]
[424975353,1781365839000,-150.0,0.00011166,2]
[424975359,1781365839000,-150.0,0.00011166,2]
[424975355,1781365839000,-150.0,0.00011166,2]
[424975347,1781365839000,-166.66,0.00011068,2]
[424975383,1781365839000,-152.0,0.00011966,2]
[424975362,1781365839000,-245.0,0.00011166,2]
[424975387,1781365839000,-151.0,0.00011966,2]
[424975412,1781365839000,-166.2,0.00012166,2]
[424975416,1781365839000,-283.24,0.00012826,2]
[424975417,1781365839000,-1945.69,0.00012893,2]
[424975414,1781365839000,-165.98,0.00012715,2]
[424975418,1781365839000,-2445.39516581,0.00012898,2]
[424975420,1781365839000,-736.0,0.0001314,2]
[424975419,1781365839000,-221.63483616,0.00012898,2]
[424975413,1781365839000,-1085.81,0.00012368,2]
[424975415,1781365839000,-22395.90301412,0.00012798,2]
[424975422,1781365839000,-150.0,0.00013268,2]
[424975411,1781365839000,-52641.64,0.0001209,2]
[424975421,1781365839000,-500.0,0.00013262,2]
[424975424,1781365839000,-317.0,0.00013268,2]
[424975426,1781365839000,-311.0,0.00013268,2]
[424975429,1781365839000,-318.0,0.00013268,2]
[424975425,1781365839000,-311.0,0.00013268,2]
[424975428,1781365839000,-151.0,0.00013268,2]
[424975427,1781365839000,-318.0,0.00013268,2]
[424975430,1781365839000,-310.0,0.00013268,2]
[424975431,1781365839000,-314.0,0.00013268,2]
[424975432,1781365839000,-152.0,0.00013268,2]
[424975390,1781365839000,-312.0,0.00011966,2]
[424975423,1781365839000,-150.0,0.00013268,2]
[424975408,1781365839000,-320.0,0.00011966,2]
[424975433,1781365839000,-314.0,0.00013268,2]
[424975404,1781365839000,-321.0,0.00011966,2]
[424975384,1781365839000,-319.0,0.00011966,2]
[424975385,1781365839000,-315.0,0.00011966,2]
[424975391,1781365839000,-150.0,0.00011966,2]
[424975389,1781365839000,-320.0,0.00011966,2]
[424975386,1781365839000,-310.0,0.00011966,2]
[424975388,1781365839000,-310.0,0.00011966,2]
[424975407,1781365839000,-311.0,0.00011966,2]
[424975392,1781365839000,-314.0,0.00011966,2]
[424975394,1781365839000,-238.59716183,0.00011966,2]
[424975396,1781365839000,-151.0,0.00011966,2]
[424975395,1781365839000,-317.0,0.00011966,2]
[424975393,1781365839000,-317.0,0.00011966,2]
[424975399,1781365839000,-313.0,0.00011966,2]
[424975434,1781365839000,-313.0,0.00013268,2]
[424975400,1781365839000,-319.0,0.00011966,2]
[424975398,1781365839000,-310.0,0.00011966,2]
[424975401,1781365839000,-151.0,0.00011966,2]
[424975402,1781365839000,-153.0,0.00011966,2]
[424975410,1781365839000,-8460.2788,0.0001199,2]
[424975403,1781365839000,-316.0,0.00011966,2]
[424975409,1781365839000,-203.24506542,0.00011966,2]
[424975406,1781365839000,-153.0,0.00011966,2]
[424975397,1781365839000,-314.0,0.00011966,2]
[424975405,1781365839000,-315.0,0.00011966,2]
[424975468,1781365840000,-500.0,0.00013698,2]
[424975463,1781365840000,-500.0,0.00013698,2]
[424975465,1781365840000,-365.06,0.00013698,2]
[424975466,1781365840000,-500.0,0.00013698,2]
[424975461,1781365840000,-500.0,0.00013698,2]
[424975464,1781365840000,-500.0,0.00013698,2]
[424975467,1781365840000,-500.0,0.00013698,2]
[424975460,1781365840000,-500.0,0.00013698,2]
[424975462,1781365840000,-500.0,0.00013698,2]
[424975469,1781365840000,-500.0,0.00013698,2]
[424975480,1781365840000,-500.0,0.00013698,2]
[424975481,1781365840000,-500.0,0.00013698,2]
[424975482,1781365840000,-500.0,0.00013698,2]
[424975470,1781365840000,-500.0,0.00013698,2]
[424975478,1781365840000,-466.44,0.00013698,2]
[424975474,1781365840000,-283.55,0.00013698,2]
[424975473,1781365840000,-500.0,0.00013698,2]
[424975476,1781365840000,-500.0,0.00013698,2]
[424975475,1781365840000,-500.0,0.00013698,2]
[424975472,1781365840000,-500.0,0.00013698,2]
[424975459,1781365840000,-500.0,0.00013698,2]
[424975471,1781365840000,-500.0,0.00013698,2]
[424975458,1781365840000,-500.0,0.00013698,2]
[424975446,1781365840000,-319.0,0.00013376,2]
[424975457,1781365840000,-500.0,0.00013698,2]
[424975479,1781365840000,-500.0,0.00013698,2]
[424975436,1781365840000,-310.0,0.00013268,2]
[424975435,1781365840000,-321.0,0.00013268,2]
[424975438,1781365840000,-320.0,0.00013285,2]
[424975437,1781365840000,-2000.0,0.0001327,2]
[424975440,1781365840000,-319.0,0.00013285,2]
[424975439,1781365840000,-316.0,0.00013285,2]
[424975442,1781365840000,-500.0,0.00013302,2]
[424975444,1781365840000,-500.0,0.0001335,2]
[424975443,1781365840000,-2000.0,0.00013348,2]
[424975450,1781365840000,-500.0,0.00013664,2]
[424975441,1781365840000,-2000.0,0.00013302,2]
[424975445,1781365840000,-318.0,0.00013376,2]
[424975447,1781365840000,-166.2,0.00013383,2]
[424975449,1781365840000,-6821.7941,0.00013599,2]
[424975448,1781365840000,-2000.0,0.0001343,2]
[424975452,1781365840000,-2000.0,0.0001369,2]
[424975451,1781365840000,-500.0,0.00013673,2]
[424975455,1781365840000,-500.0,0.00013698,2]
[424975454,1781365840000,-500.0,0.00013698,2]
[424975453,1781365840000,-697.05,0.00013695,2]
[424975456,1781365840000,-500.0,0.00013698,2]
[424975483,1781365840000,-500.0,0.00013698,2]
[424975485,1781365840000,-195.0,0.00013698,2]
[424975521,1781365840000,-168.91634944,0.00015649,2]
[424975512,1781365840000,-360.0,0.00015,3]
[424975513,1781365840000,-384.0,0.00015,2]
[424975517,1781365840000,-1085.81,0.00015116,2]
[424975514,1781365840000,-256.0,0.00015,2]
[424975516,1781365840000,-900.0,0.00015068,2]
[424975520,1781365840000,-1613.0535,0.00015596,2]
[424975519,1781365840000,-166.68,0.00015475,2]
[424975518,1781365840000,-3092.93,0.00015315,2]
[424975523,1781365840000,-2129.0,0.00015904,2]
[424975528,1781365840000,-9999.99,0.00016116,2]
[424975530,1781365840000,-500.0,0.00016154,2]
[424975527,1781365840000,-227.50195782,0.000161,2]
[424975529,1781365840000,-1672.7364795,0.00016144,2]
[424975525,1781365840000,-190.56126992,0.00016065,2]
[424975522,1781365840000,-166.2,0.00015816,2]
[424975524,1781365840000,-227.50195782,0.00016,2]
[424975526,1781365840000,-2000.0,0.00016073,2]
[424975531,1781365840000,-254.909441,0.00016321,2]
[424975532,1781365840000,-500.0,0.00016437,2]
[424975484,1781365840000,-195.0,0.00013698,2]
[424975533,1781365840000,-500.0,0.00016437,2]
[424975511,1781365840000,-500.0,0.00015,2]
[424975506,1781365840000,-313.0,0.00014999,2]
[424975515,1781365840000,-1555.5,0.00015048,2]
[424975510,1781365840000,-500.0,0.00015,2]
[424975486,1781365840000,-200.0,0.00013699,2]
[424975487,1781365840000,-2500.0,0.00013699,2]
[424975490,1781365840000,-500.0,0.00013699,2]
[424975489,1781365840000,-551.44852787,0.00013699,2]
[424975492,1781365840000,-530.0,0.00013699,2]
[424975488,1781365840000,-500.0,0.00013699,2]
[424975491,1781365840000,-500.0,0.00013699,2]
[424975508,1781365840000,-697.05,0.00014999,2]
[424975493,1781365840000,-826.266733,0.000137,2]
[424975497,1781365840000,-166.2,0.00014599,2]
[424975495,1781365840000,-1252.0,0.00014453,2]
[424975496,1781365840000,-1500.0,0.000145,2]
[424975494,1781365840000,-1085.81,0.00013742,2]
[424975507,1781365840000,-315.0,0.00014999,2]
[424975499,1781365840000,-22395.90301406,0.00014726,2]
[424975498,1781365840000,-2500.0,0.00014699,2]
[424975500,1781365840000,-199.5,0.00014863,2]
[424975502,1781365840000,-7718.4,0.00014998,2]
[424975505,1781365840000,-150.0,0.00014999,2]
[424975503,1781365840000,-500.0,0.00014998,2]
[424975504,1781365840000,-321.0,0.00014999,2]
[424975509,1781365840000,-541.32,0.00015,2]
[424975501,1781365840000,-249.22462077,0.00014899,2]
[424975568,1781365841000,-440.63867414,0.000182,2]
[424975566,1781365841000,-1005.75402464,0.000181,2]
[424975562,1781365841000,-500.99997,0.00018,2]
[424975569,1781365841000,-166.2,0.00018249,2]
[424975561,1781365841000,-505.0,0.00018,2]
[424975564,1781365841000,-501.0,0.00018,2]
[424975567,1781365841000,-166.17391174,0.000182,2]
[424975560,1781365841000,-1005.75402464,0.00018,2]
[424975565,1781365841000,-1834.605392,0.000181,2]
[424975563,1781365841000,-501.0,0.00018,2]
[424975584,1781365841000,-462.24551806,0.000184,2]
[424975593,1781365841000,-440.63867414,0.000187,2]
[424975570,1781365841000,-168.91634944,0.00018268,2]
[424975588,1781365841000,-440.63867414,0.000185,2]
[424975586,1781365841000,-1579.9,0.0001841,2]
[424975574,1781365841000,-1934.38338736,0.00018336,2]
[424975576,1781365841000,-80541.26,0.00018356,2]
[424975572,1781365841000,-1005.75402464,0.000183,2]
[424975579,1781365841000,-166.17391174,0.000184,2]
[424975590,1781365841000,-1005.75402464,0.000185,2]
[424975591,1781365841000,-1126.0,0.00018538,2]
[424975559,1781365841000,-1834.605392,0.00018,2]
[424975581,1781365841000,-440.63867414,0.000184,2]
[424975556,1781365841000,-200.0,0.00017941,2]
[424975534,1781365841000,-885.06,0.00016437,2]
[424975557,1781365841000,-166.17391174,0.00018,2]
[424975535,1781365841000,-258.95,0.00016438,2]
[424975538,1781365841000,-900.0,0.00016438,2]
[424975537,1781365841000,-1942.0,0.00016438,2]
[424975539,1781365841000,-1085.81,0.0001649,2]
[424975536,1781365841000,-230.75,0.00016438,2]
[424975540,1781365841000,-22395.90301406,0.00016654,2]
[424975541,1781365841000,-1734.62772924,0.00016692,2]
[424975550,1781365841000,-1834.605392,0.000176,2]
[424975542,1781365841000,-504.54048414,0.00016724,2]
[424975545,1781365841000,-283.24,0.00017264,2]
[424975547,1781365841000,-1005.75402464,0.000174,2]
[424975548,1781365841000,-328.594201,0.0001746,2]
[424975546,1781365841000,-1834.605392,0.000174,2]
[424975543,1781365841000,-166.2,0.00017032,2]
[424975544,1781365841000,-1798.80895522,0.0001724,2]
[424975549,1781365841000,-1525.0,0.00017493,2]
[424975552,1781365841000,-190.387569,0.00017618,2]
[424975551,1781365841000,-1005.75402464,0.000176,2]
[424975555,1781365841000,-1005.75402464,0.000178,2]
[424975554,1781365841000,-1834.605392,0.000178,2]
[424975553,1781365841000,-1865.36488656,0.00017788,2]
[424975558,1781365841000,-440.63867414,0.00018,2]
[424975594,1781365841000,-1005.75402464,0.000187,2]
[424975644,1781365841000,-151.0,0.00019432,2]
[424975596,1781365841000,-505.0,0.00018795,2]
[424975625,1781365841000,-151.0,0.00019432,2]
[424975622,1781365841000,-200.0,0.00019432,2]
[424975633,1781365841000,-151.0,0.00019432,2]
[424975624,1781365841000,-151.0,0.00019432,2]
[424975627,1781365841000,-151.0,0.00019432,2]
[424975631,1781365841000,-500.0,0.00019432,2]
[424975632,1781365841000,-151.0,0.00019432,2]
[424975628,1781365841000,-151.0,0.00019432,2]
[424975630,1781365841000,-2080.17592889,0.00019432,2]
[424975629,1781365841000,-151.0,0.00019432,2]
[424975623,1781365841000,-151.0,0.00019432,2]
[424975635,1781365841000,-151.0,0.00019432,2]
[424975636,1781365841000,-151.0,0.00019432,2]
[424975637,1781365841000,-500.0,0.00019432,2]
[424975638,1781365841000,-151.0,0.00019432,2]
[424975639,1781365841000,-500.0,0.00019432,2]
[424975640,1781365841000,-151.0,0.00019432,2]
[424975641,1781365841000,-151.0,0.00019432,2]
[424975643,1781365841000,-151.0,0.00019432,2]
[424975642,1781365841000,-500.0,0.00019432,2]
[424975645,1781365841000,-500.0,0.00019432,2]
[424975599,1781365841000,-392.00968676,0.0001895,4]
[424975634,1781365841000,-500.0,0.00019432,2]
[424975619,1781365841000,-151.0,0.00019432,2]
[424975626,1781365841000,-151.0,0.00019432,2]
[424975616,1781365841000,-150.234,0.00019335,2]
[424975617,1781365841000,-426.241,0.00019335,2]
[424975598,1781365841000,-1005.75402464,0.000189,2]
[424975592,1781365841000,-22395.90301406,0.00018582,2]
[424975600,1781365841000,-1005.75402464,0.000191,2]
[424975602,1781365841000,-249.22462078,0.00019178,2]
[424975601,1781365841000,-451.1,0.000191,7]
[424975603,1781365841000,-20478.25,0.00019178,2]
[424975607,1781365841000,-1275.0,0.00019335,2]
[424975605,1781365841000,-1369.077,0.00019335,2]
[424975608,1781365841000,-1242.02,0.00019335,2]
[424975610,1781365841000,-200.0,0.00019335,2]
[424975597,1781365841000,-2005.9555727,0.00018884,2]
[424975606,1781365841000,-383.0,0.00019335,2]
[424975604,1781365841000,-3557.0,0.00019335,2]
[424975620,1781365841000,-151.0,0.00019432,2]
[424975614,1781365841000,-150.0,0.00019335,2]
[424975615,1781365841000,-150.0,0.00019335,2]
[424975621,1781365841000,-151.0,0.00019432,2]
[424975618,1781365841000,-150.103,0.00019335,2]
[424975612,1781365841000,-6076.0,0.00019335,2]
[424975609,1781365841000,-150.0,0.00019335,2]
[424975611,1781365841000,-200.0,0.00019335,2]
[424975613,1781365841000,-150.185,0.00019335,2]
[424975682,1781365842000,-1066.0,0.0002,2]
[424975671,1781365842000,-450.0,0.00019751,2]
[424975674,1781365842000,-178.31,0.0001995,2]
[424975673,1781365842000,-1100.0,0.000199,7]
[424975677,1781365842000,-200.0,0.0001998,2]
[424975676,1781365842000,-151.0,0.0001998,2]
[424975680,1781365842000,-152.0,0.0002,2]
[424975675,1781365842000,-267.09,0.0001995,2]
[424975678,1781365842000,-2157.14243826,0.0001998,2]
[424975679,1781365842000,-249.0,0.0002,2]
[424975683,1781365842000,-200000.0,0.0002,2]
[424975689,1781365842000,-1715.585753,0.0002,2]
[424975684,1781365842000,-1326.0,0.0002,2]
[424975681,1781365842000,-784.43422086,0.0002,2]
[424975686,1781365842000,-321.0,0.0002,2]
[424975687,1781365842000,-222.0,0.0002,2]
[424975696,1781365842000,-197.35499237,0.0002,2]
[424975694,1781365842000,-2065.0,0.0002,2]
[424975692,1781365842000,-568.0,0.0002,2]
[424975690,1781365842000,-445.0,0.0002,2]
[424975697,1781365842000,-6825.85,0.0002,2]
[424975668,1781365842000,-1672.0,0.00019522,5]
[424975685,1781365842000,-2822.0,0.0002,2]
[424975670,1781365842000,-508.32220444,0.00019662,7]
[424975693,1781365842000,-486.0,0.0002,2]
[424975669,1781365842000,-505.0,0.0001959,3]
[424975646,1781365842000,-151.0,0.00019432,2]
[424975647,1781365842000,-151.0,0.00019432,2]
[424975651,1781365842000,-500.0,0.00019432,2]
[424975652,1781365842000,-151.0,0.00019432,2]
[424975650,1781365842000,-151.0,0.00019432,2]
[424975648,1781365842000,-500.0,0.00019432,2]
[424975654,1781365842000,-500.0,0.00019432,2]
[424975649,1781365842000,-151.0,0.00019432,2]
[424975653,1781365842000,-151.0,0.00019432,2]
[424975655,1781365842000,-151.0,0.00019432,2]
[424975672,1781365842000,-249.0,0.00019863,2]
[424975661,1781365842000,-151.0,0.00019432,2]
[424975662,1781365842000,-151.0,0.00019432,2]
[424975657,1781365842000,-500.0,0.00019432,2]
[424975659,1781365842000,-151.0,0.00019432,2]
[424975658,1781365842000,-151.0,0.00019432,2]
[424975663,1781365842000,-151.0,0.00019432,2]
[424975666,1781365842000,-831.0,0.00019452,2]
[424975664,1781365842000,-195.0,0.00019432,2]
[424975656,1781365842000,-151.0,0.00019432,2]
[424975665,1781365842000,-499.0,0.00019452,2]
[424975667,1781365842000,-1126.0,0.00019514,2]
[424975660,1781365842000,-500.0,0.00019432,2]
[424975695,1781365842000,-195.0,0.0002,2]
[424975688,1781365842000,-1210.0,0.0002,2]
[424975699,1781365842000,-344.0,0.0002,2]
[424975721,1781365842000,-154.97261272,0.00020489,2]
[424975723,1781365842000,-592.09286101,0.00020489,2]
[424975728,1781365842000,-8552.16786545,0.00020489,2]
[424975729,1781365842000,-1428.38747117,0.00020489,2]
[424975727,1781365842000,-174.61919141,0.00020489,2]
[424975730,1781365842000,-693.39197629,0.00020489,2]
[424975734,1781365842000,-151.0,0.00020489,2]
[424975733,1781365842000,-1536.04360648,0.00020489,2]
[424975736,1781365842000,-500.0,0.00020489,2]
[424975731,1781365842000,-1481.2378076,0.00020489,2]
[424975735,1781365842000,-152.0,0.00020489,2]
[424975732,1781365842000,-500.0,0.00020489,2]
[424975737,1781365842000,-1592.87721992,0.00020489,2]
[424975739,1781365842000,-151.0,0.00020489,2]
[424975742,1781365842000,-152.0,0.00020489,2]
[424975738,1781365842000,-1000.0,0.00020489,2]
[424975741,1781365842000,-209.40437684,0.00020489,2]
[424975740,1781365842000,-151.0,0.00020489,2]
[424975745,1781365842000,-1000.0,0.00020489,2]
[424975747,1781365842000,-1712.93078311,0.00020489,2]
[424975744,1781365842000,-1651.81367706,0.00020489,2]
[424975746,1781365842000,-278.69467456,0.00020489,2]
[424975691,1781365842000,-419.0,0.0002,2]
[424975724,1781365842000,-199.41706893,0.00020489,2]
[424975725,1781365842000,-578.20924308,0.00020489,2]
[424975743,1781365842000,-500.0,0.00020489,2]
[424975722,1781365842000,-1328.27659266,0.00020489,2]
[424975726,1781365842000,-1377.42282658,0.00020489,2]
[424975703,1781365842000,-163.99143657,0.00020083,2]
[424975705,1781365842000,-831.0,0.00020136,2]
[424975698,1781365842000,-403.0,0.0002,2]
[424975700,1781365842000,-151.0,0.0002,5]
[424975701,1781365842000,-151.0,0.0002,5]
[424975702,1781365842000,-186.5,0.0002,5]
[424975748,1781365842000,-4853.74383408,0.00020489,2]
[424975707,1781365842000,-1579.9,0.00020381,2]
[424975706,1781365842000,-784.43422086,0.000202,2]
[424975708,1781365842000,-505.0,0.00020385,4]
[424975704,1781365842000,-499.0,0.00020136,2]
[424975709,1781365842000,-784.43422086,0.000204,2]
[424975710,1781365842000,-154.14183409,0.00020489,2]
[424975718,1781365842000,-209.40437684,0.00020489,2]
[424975713,1781365842000,-1107.63007,0.00020489,2]
[424975712,1781365842000,-1068.11,0.00020489,2]
[424975715,1781365842000,-1148.61238259,0.00020489,2]
[424975719,1781365842000,-1280.88388877,0.00020489,2]
[424975711,1781365842000,-1030.0,0.00020489,2]
[424975717,1781365842000,-1235.18214925,0.00020489,2]
[424975714,1781365842000,-252.36257952,0.00020489,2]
[424975716,1781365842000,-1191.11104074,0.00020489,2]
[424975720,1781365842000,-201.86567751,0.00020489,2]
[424975773,1781365843000,-731.38039236,0.00020489,2]
[424975768,1781365843000,-152.0,0.00020489,2]
[424975779,1781365843000,-500.0,0.00020489,2]
[424975771,1781365843000,-500.0,0.00020489,2]
[424975772,1781365843000,-1000.0,0.00020489,2]
[424975780,1781365843000,-152.0,0.00020489,2]
[424975785,1781365843000,-22395.90301406,0.0002051,2]
[424975784,1781365843000,-198.32259714,0.00020489,2]
[424975781,1781365843000,-500.0,0.00020489,2]
[424975788,1781365843000,-2236.95670847,0.00020528,2]
[424975783,1781365843000,-152.0,0.00020489,2]
[424975786,1781365843000,-151.0,0.00020528,2]
[424975787,1781365843000,-200.0,0.00020528,2]
[424975795,1781365843000,-173.51374705,0.0002058,2]
[424975789,1781365843000,-592.09286101,0.00020544,2]
[424975794,1781365843000,-150.0,0.0002058,2]
[424975774,1781365843000,-500.0,0.00020489,2]
[424975790,1781365843000,-151.0,0.00020544,2]
[424975782,1781365843000,-152.0,0.00020489,2]
[424975775,1781365843000,-152.0,0.00020489,2]
[424975756,1781365843000,-1842.0326633,0.00020489,2]
[424975777,1781365843000,-500.0,0.00020489,2]
[424975792,1781365843000,-150.0,0.0002058,2]
[424975750,1781365843000,-152.0,0.00020489,2]
[424975751,1781365843000,-1000.0,0.00020489,2]
[424975749,1781365843000,-500.0,0.00020489,2]
[424975754,1781365843000,-1000.0,0.00020489,2]
[424975753,1781365843000,-1776.30922209,0.00020489,2]
[424975752,1781365843000,-151.0,0.00020489,2]
[424975757,1781365843000,-1000.0,0.00020489,2]
[424975778,1781365843000,-152.0,0.00020489,2]
[424975755,1781365843000,-152.0,0.00020489,2]
[424975760,1781365843000,-1910.18787185,0.00020489,2]
[424975761,1781365843000,-152.0,0.00020489,2]
[424975766,1781365843000,-1980.8648231,0.00020489,2]
[424975764,1781365843000,-500.0,0.00020489,2]
[424975763,1781365843000,-1000.0,0.00020489,2]
[424975767,1781365843000,-1000.0,0.00020489,2]
[424975765,1781365843000,-721.12765534,0.00020489,2]
[424975769,1781365843000,-2054.15682152,0.00020489,2]
[424975758,1781365843000,-209.40437684,0.00020489,2]
[424975793,1781365843000,-150.0,0.0002058,2]
[424975759,1781365843000,-500.0,0.00020489,2]
[424975797,1781365843000,-151.0,0.00020599,2]
[424975820,1781365843000,-592.09286101,0.00020984,2]
[424975821,1781365843000,-151.0,0.00020984,2]
[424975822,1781365843000,-249.0,0.00021,2]
[424975828,1781365843000,-222.0,0.00021,2]
[424975824,1781365843000,-395.47717504,0.00021,2]
[424975826,1781365843000,-2822.0,0.00021,2]
[424975823,1781365843000,-152.0,0.00021,2]
[424975837,1781365843000,-403.0,0.00021,2]
[424975818,1781365843000,-592.09286101,0.00020929,2]
[424975827,1781365843000,-321.0,0.00021,2]
[424975830,1781365843000,-1715.585753,0.00021,2]
[424975831,1781365843000,-445.0,0.00021,2]
[424975834,1781365843000,-486.0,0.00021,2]
[424975836,1781365843000,-150.0,0.00021,2]
[424975833,1781365843000,-568.0,0.00021,2]
[424975832,1781365843000,-419.0,0.00021,2]
[424975835,1781365843000,-2065.0,0.00021,2]
[424975791,1781365843000,-5033.33235594,0.00020544,2]
[424975825,1781365843000,-1326.0,0.00021,2]
[424975817,1781365843000,-168.91634944,0.00020887,2]
[424975829,1781365843000,-1210.0,0.00021,2]
[424975815,1781365843000,-592.09286101,0.00020874,2]
[424975816,1781365843000,-151.0,0.00020874,2]
[424975796,1781365843000,-592.09286101,0.00020599,2]
[424975803,1781365843000,-592.09286101,0.00020709,2]
[424975799,1781365843000,-784.43422086,0.000206,2]
[424975802,1781365843000,-5412.68958227,0.00020654,2]
[424975801,1781365843000,-151.0,0.00020654,2]
[424975800,1781365843000,-592.09286101,0.00020654,2]
[424975805,1781365843000,-5612.95909682,0.00020709,2]
[424975804,1781365843000,-151.0,0.00020709,2]
[424975798,1781365843000,-5219.56565311,0.00020599,2]
[424975808,1781365843000,-2452.13248052,0.00020764,2]
[424975812,1781365843000,-499.0,0.00020821,2]
[424975807,1781365843000,-151.0,0.00020764,2]
[424975811,1781365843000,-151.0,0.00020819,2]
[424975810,1781365843000,-592.09286101,0.00020819,2]
[424975809,1781365843000,-784.43422086,0.000208,2]
[424975814,1781365843000,-885.06,0.00020833,2]
[424975819,1781365843000,-151.0,0.00020929,2]
[424975806,1781365843000,-592.09286101,0.00020764,2]
[424975813,1781365843000,-259.40265933,0.00020833,2]
[424975857,1781365844000,-395.47717504,0.000212,2]
[424975865,1781365844000,-199.41706893,0.00021585,2]
[424975866,1781365844000,-187.78006524,0.00021585,2]
[424975862,1781365844000,-252.36257952,0.00021585,2]
[424975860,1781365844000,-499.0,0.00021506,2]
[424975859,1781365844000,-787.05,0.00021405,2]
[424975870,1781365844000,-151.84,0.00021585,2]
[424975864,1781365844000,-154.97261272,0.00021585,2]
[424975867,1781365844000,-151.0,0.00021585,2]
[424975869,1781365844000,-225.18697532,0.00021585,2]
[424975858,1781365844000,-395.47717504,0.000214,2]
[424975871,1781365844000,-395.47717504,0.000216,2]
[424975863,1781365844000,-294.2267383,0.00021585,2]
[424975854,1781365844000,-2319.72410669,0.00021076,2]
[424975844,1781365844000,-151.0,0.00021037,2]
[424975856,1781365844000,-505.0,0.00021179,4]
[424975853,1781365844000,-200.0,0.00021076,2]
[424975855,1781365844000,-437.4,0.00021096,2]
[424975851,1781365844000,-151.0,0.00021039,2]
[424975849,1781365844000,-592.09286107,0.00021039,2]
[424975847,1781365844000,-217.15233878,0.00021037,2]
[424975845,1781365844000,-151.0,0.00021037,2]
[424975841,1781365844000,-154.97261272,0.00021037,2]
[424975843,1781365844000,-181.08010149,0.00021037,2]
[424975842,1781365844000,-199.41706893,0.00021037,2]
[424975840,1781365844000,-217.15233878,0.00021037,2]
[424975838,1781365844000,-344.0,0.00021,2]
[424975839,1781365844000,-252.36257952,0.00021037,2]
[424975874,1781365844000,-2405.55389863,0.00021624,2]
[424975852,1781365844000,-151.0,0.00021076,2]
[424975875,1781365844000,-6825.85,0.00021664,2]
[424975868,1781365844000,-151.0,0.00021585,2]
[424975873,1781365844000,-200.0,0.00021624,2]
[424975872,1781365844000,-151.0,0.00021624,2]
[424975906,1781365844000,-252.36257952,0.00022133,2]
[424975905,1781365844000,-500.0,0.00022126,2]
[424975903,1781365844000,-904.0,0.00022012,2]
[424975901,1781365844000,-2000.0,0.00022012,2]
[424975899,1781365844000,-403.0,0.00022,2]
[424975902,1781365844000,-2000.0,0.00022012,2]
[424975900,1781365844000,-344.0,0.00022,2]
[424975898,1781365844000,-2065.0,0.00022,2]
[424975897,1781365844000,-486.0,0.00022,2]